[Event "57th Biel Festival MTO 2024"]
[White "Collin,Moritz Valentin"]
[Black "Saraci,Nderim"]
[Site "Biel"]
[Round "4.19"]
[Annotator "TA"]
[Result "1/2-1/2"]
[Date "2024.07.18"]
[WhiteElo "2312"]
[BlackElo "2449"]
[PlyCount "103"]
[TimeControl "60"]

{[%evp 22,103,69,68,74,56,61,56,59,56,87,88,77,90,80,4,27,19,29,0,0,0,52,41,28,0,0,-9,-11,-9,-8,-8,-10,-8,-20,-25,-31,-41,-8,-8,0,0,0,0,86,88,81,58,51,51,57,66,66,66,74,73,88,88,88,88,88,88,88,88,95,95,95,95,95,95,95,8,8,8,8,8,8,8,8,8,8,8,8,8]} 1. d4 {[%emt 0:0:3]} Nf6 {[%emt 0:0:54]} 2. c4 {[%emt 0:0:12]} g6 {[%emt 0:0:29]} 3. h4 {[%emt 0:0:5]} c5 {[%emt 0:1:9]} 4. d5 {[%emt 0:0:6]} b5 {[%emt 0:0:31]} 5. cxb5 {[%emt 0:0:5]} a6 {[%emt 0:0:8]} 6. e3 {[%emt 0:0:5] E60: King's Indian: Unusual lines and Fianchetto Variation without Nc3.} Bg7 {[%emt 0:4:37]} 7. Nc3 {[%emt 0:0:49]} axb5 {[%emt 0:7:34]} 8. Bxb5 {[%emt 0:0:10]} Ba6 {[%emt 0:0:6]} 9. Bxa6 {[%emt 0:9:2]} Rxa6 {[%emt 0:3:49]} 10. Nf3 {[%emt 0:2:59]} d6 {[%emt 0:1:53]} 11. e4 {[%emt 0:1:31]} Nbd7 {[%emt 0:1:11]} 12. a4 {[%emt 0:5:25]} O-O {[%emt 0:2:11]} 13. O-O {[%emt 0:0:15]} Qa8 {[%emt 0:4:21]} 14. Ra3 $146 {[%emt 0:16:39]} ({Predecessor:} 14. Nb5 Qb7 15. Qc2 Nb6 16. Ra3 Rc8 17. Bf4 Qd7 18. Rfa1 Qg4 19. g3 Nh5 20. Bd2 {0-1 Ismagilov,I (2220)-Mochalov,D (2001) Cheliabinsk Panchenko Memorial op-A 2022 (2)} )Rb8 {[%emt 0:5:58]} 15. Nb5 {[%emt 0:0:0]} Rb7 {[%emt 0:10:41]} (15... Nxe4 $2 16. Nc7 Qa7 17. Nxa6 Qxa6 18. Re1 $18 )16. Nd2 {[%emt 0:6:16]} Nb6 {[%emt 0:7:33]} 17. b3 {[%emt 0:9:55]} c4 {[%emt 0:17:7]} 18. bxc4 {[%emt 0:4:31]} (18. Nxc4 $16 {Hoping for Qe2.} Nxc4 19. bxc4 )Nfd7 {[%emt 0:3:12]} 19. Qc2 {[%emt 0:11:21]} Rxa4 {[%emt 0:4:35]} 20. Bb2 {[%emt 0:8:58]} (20. Rxa4 {simplifies} Qxa4 21. Qxa4 Nxa4 22. Nb3 )Rxa3 {[%emt 0:15:18]} 21. Bxa3 {[%emt 0:0:16]} Qa4 {[%emt 0:1:8]} (21... Bh6 $11 22. Nf3 Qc8 )22. Qxa4 $1 $14 {[%emt 0:5:57]} Nxa4 {[%emt 0:0:2]} 23. Nb3 {[%emt 0:6:49]} Nc3 {[%emt 0:2:51]} 24. Nxc3 {[%emt 0:12:24]} Rxb3 {[%emt 0:1:49]} 25. Nb5 {[%emt 0:0:7]} Ne5 {[%emt 0:4:4]} 26. Rc1 {[%emt 0:1:26]} f5 {[%emt 0:3:0]} 27. exf5 {[%emt 0:3:9]} gxf5 {[%emt 0:0:2]} 28. Bxd6 {[%emt 0:2:10]} exd6 {[%emt 0:0:26]} 29. Nxd6 {[%emt 0:0:5]} Nd3 {[%emt 0:2:27]} 30. Rd1 {[%emt 0:0:34]} f4 {[%emt 0:1:18]} 31. Ne4 {[%emt 0:2:7]} Nb2 {[%emt 0:1:12]} 32. Rc1 {[%emt 0:1:28]} Rb4 {[%emt 0:2:45]} (32... Nd3 $11 {keeps the balance.} 33. Rc2 Rb1+ 34. Kh2 Re1 )33. d6 $16 {[%emt 0:1:3]} Kf8 {[%emt 0:0:51]} (33... Nxc4 $2 34. d7 Rb8 35. Rxc4 Rb1+ 36. Kh2 $18 )(33... Rxc4 $2 34. Rxc4 Nxc4 35. d7 $18 )34. Ng5 {[%emt 0:0:54]} (34. d7 {with more complications.} Ke7 35. Nc5 Nxc4 36. Ne6 )Rxc4 {[%emt 0:1:38]} 35. Rxc4 {[%emt 0:0:5]} Nxc4 {[%emt 0:0:2]} 36. Ne6+ {[%emt 0:0:54]} (36. Nxh7+ Ke8 37. Kf1 Kd7 $11 (37... Nxd6 $2 38. Ng5 $19 ))Kf7 {[%emt 0:0:1]} 37. Nxg7 {[%emt 0:0:14]} (37. Nxf4 Bf6 (37... Nxd6 38. Kf1 $17 )38. g3 Nxd6 $15 )Nxd6 $1 {[%emt 0:0:9]} 38. Nh5 {[%emt 0:0:4]} Nf5 {[%emt 0:0:39]} 39. Nxf4 {[%emt 0:0:32]} Nxh4 {[%emt 0:0:7]} 40. g4 {[%emt 0:0:38]} Nf3+ {[%emt 0:2:2]} 41. Kg2 {[%emt 0:50:20]} Nd2 {[%emt 0:4:35]} 42. Nh5 {[%emt 0:0:0]} h6 {[%emt 0:1:36]} 43. f4 {[%emt 0:0:0]} Nc4 {[%emt 0:1:51]} 44. Ng3 {[%emt 0:0:0]} Ne3+ {[%emt 0:1:40]} 45. Kf3 {[%emt 0:0:0]} Nd5 {[%emt 0:0:9]} 46. Ke4 {[%emt 0:0:0]} (46. Nf5 $16 Kg6 47. Nh4+ Kf6 48. Ng2 )Nf6+ $1 $11 {[%emt 0:0:33]} 47. Kf5 {[%emt 0:0:0]} Nd5 $1 {[%emt 0:0:13]} 48. Nf1 {[%emt 0:0:0]} Kg7 {[%emt 0:2:36]} 49. Ke5 {[%emt 0:0:0]} Nf6 {[%emt 0:0:28]} 50. Ne3 {[%emt 0:0:0]} Kg6 {[%emt 0:1:31]} 51. Ke6 {[%emt 0:0:0]} h5 {[%emt 0:1:0]} 52. gxh5+ {[%emt 0:0:0]} 1/2-1/2

[Event "57th Biel Festival MTO 2024"]
[White "Gan-Erdene,Sugar"]
[Black "Peycheva,Gergana"]
[Site "Biel"]
[Round "4.20"]
[Annotator "TA"]
[Result "1-0"]
[Date "2024.07.18"]
[WhiteElo "2424"]
[BlackElo "2266"]
[PlyCount "127"]
[TimeControl "60"]

{[%evp 26,127,9,7,14,0,0,0,0,0,0,-24,-16,-17,0,-14,0,0,14,25,18,21,11,12,13,9,13,0,4,13,13,0,12,0,25,0,0,0,0,0,9,16,37,37,34,43,57,37,56,36,62,22,50,60,109,99,105,106,133,127,110,118,192,181,303,246,350,342,406,267,392,392,499,483,496,516,760,589,589,615,621,629,588,588,588,547,540,540,4710,720,29967,8037,5065,1768,2116,1657,1671,3531,29969,29970,29968,29967,29938,8506]} 1. e4 {[%emt 0:0:3]} c6 {[%emt 0:4:20]} 2. Nf3 {[%emt 0:0:6]} d5 {[%emt 0:1:51]} 3. Nc3 {[%emt 0:0:7]} Bg4 {[%emt 0:0:6]} 4. h3 {[%emt 0:1:34]} Bxf3 {[%emt 0:0:57]} 5. Qxf3 {[%emt 0:0:6]} Nf6 {[%emt 0:1:6]} 6. Be2 {[%emt 0:3:20]} e6 {[%emt 0:3:5]} 7. O-O {[%emt 0:0:21]} Nbd7 {[%emt 0:4:47]} 8. d4 {[%emt 0:4:5] B11: Caro-Kann: Two Knights Variation.} dxe4 {[%emt 0:2:30]} 9. Nxe4 {[%emt 0:0:5]} Nxe4 {[%emt 0:0:53]} 10. Qxe4 {[%emt 0:0:7]} Nf6 {[%emt 0:1:33]} 11. Qd3 {[%emt 0:1:28]} Be7 {[%emt 0:2:44]} 12. b3 {[%emt 0:7:28]} O-O {[%emt 0:3:46]} 13. Bb2 {[%emt 0:0:30]} Qc7 {[%emt 0:5:17]} 14. c4 {[%emt 0:1:54]} Rad8 {[%emt 0:6:33]} 15. Qf3 {[%emt 0:4:24]} Rd7 $146 {[%emt 0:5:3]} ({Predecessor:} 15... Nd7 16. Rfd1 Bf6 17. a3 Rfe8 18. Bd3 Nf8 19. Bc2 Rd7 20. Qe4 Red8 21. Rd2 Ng6 {0-1 Turutin,A (2394)-Sargsyan,A (2384) Titled Tuesday intern op 18th Oct Late blitz 2022 (10)} )16. Rad1 {[%emt 0:4:12]} Rfd8 {[%emt 0:2:52]} 17. a3 {[%emt 0:2:27]} Ne8 {[%emt 0:8:1]} 18. Qe3 {[%emt 0:14:49]} Bf6 {[%emt 0:4:23]} 19. Bc3 {[%emt 0:1:38]} a5 {[%emt 0:10:49]} 20. Rd2 {[%emt 0:17:36]} g6 {[%emt 0:7:58]} 21. Rfd1 {[%emt 0:5:3]} Bg7 {[%emt 0:3:15]} 22. a4 {[%emt 0:4:44]} b6 {[%emt 0:4:34]} 23. Bf3 {[%emt 0:3:34]} Nd6 {[%emt 0:4:40]} 24. g4 {[%emt 0:0:23]} Nc8 {[%emt 0:2:23]} 25. Bg2 {[%emt 0:2:24]} Ne7 {[%emt 0:0:50]} 26. Qf3 {[%emt 0:3:12]} Bh6 {[%emt 0:2:48]} 27. Rd3 {[%emt 0:5:18]} Bg7 {[%emt 0:0:18]} 28. R3d2 {[%emt 0:10:54]} Bh8 {[%emt 0:1:45]} 29. h4 {[%emt 0:1:12]} Bg7 {[%emt 0:4:24]} 30. Bh3 {[%emt 0:2:6]} h6 {[%emt 0:2:41]} 31. h5 {[%emt 0:2:23]} g5 {[%emt 0:0:15]} 32. Bg2 {[%emt 0:0:28]} Kf8 {[%emt 0:4:28]} 33. Qe3 {[%emt 0:3:35]} Qf4 {[%emt 0:2:25]} 34. Qxf4 {[%emt 0:1:24]} gxf4 {[%emt 0:0:2]} 35. c5 {[%emt 0:1:56]} Rb8 {[%emt 0:2:54]} 36. cxb6 {[%emt 0:1:50]} Rxb6 {[%emt 0:0:4]} 37. Rb1 {[%emt 0:0:16]} (37. Bxa5 Rxb3 38. Be4 Ke8 $11 )Ra7 {[%emt 0:0:44]} 38. Rc2 {[%emt 0:0:38]} Ke8 {[%emt 0:0:48]} 39. Bd2 $1 {[%emt 0:0:20]} Bxd4 {[%emt 0:1:8]} (39... Rab7 $14 )40. Bxf4 $16 {[%emt 0:0:5]} Rab7 {[%emt 0:0:56]} 41. Rd1 {[%emt 0:18:37]} Bg7 {[%emt 0:7:57]} 42. g5 {[%emt 0:5:18]} hxg5 {[%emt 0:7:21]} 43. Bxg5 {[%emt 0:0:4]} f6 {[%emt 0:2:24]} (43... Bh8 $16 44. h6 Nd5 )44. Be3 $18 {[%emt 0:0:10]} Rb4 {[%emt 0:12:6]} (44... Rxb3 $142 45. h6 (45. Bxc6+ Nxc6 46. Rxc6 Kf7 $18 )Rb1 )45. h6 {[%emt 0:5:30]} Bf8 {[%emt 0:1:39]} (45... Bxh6 {might work better.} 46. Bxh6 Rg4 )46. Rxc6 $18 {[%emt 0:3:32]} (46. Bxc6+ Nxc6 47. Rxc6 Kf7 $18 )Kf7 {[%emt 0:13:11]} 47. Ra6 {[%emt 0:6:14]} Rc7 {[%emt 0:5:31]} (47... Rb8 $142 48. Rd7 (48. Rxa5 Rxb3 49. Ra7 Rxe3 $18 )Rh4 )48. Rxa5 $18 {[%emt 0:3:53]} Rxb3 {[%emt 0:1:46]} 49. h7 {[%emt 0:2:1]} Ng6 {[%emt 0:1:17]} 50. Rh5 {[%emt 0:2:22]} Kg7 {[%emt 0:1:39]} 51. Bh6+ {[%emt 0:0:31]} Kh8 {[%emt 0:0:8]} 52. Bxf8 {[%emt 0:1:13]} Nxf8 {[%emt 0:0:14]} 53. Rd8 {[%emt 0:0:5]} Rf7 {[%emt 0:0:13]} 54. a5 {[%emt 0:0:48]} Ra3 {[%emt 0:0:59]} 55. Bb7 {[%emt 0:0:34]} f5 {[%emt 0:0:38]} 56. a6 {[%emt 0:0:10]} f4 {[%emt 0:0:57]} 57. Bc8 {[%emt 0:1:39]} (57. Be4 $142 Ra1+ 58. Kh2 )f3 {[%emt 0:0:33]} 58. Bxe6 {[%emt 0:2:1]} Rf6 {[%emt 0:0:23]} 59. Bc8 {[%emt 0:2:56]} (59. Bc4 $142 Rf4 60. Bd3 )Ra2 $18 {[%emt 0:0:32]} 60. Rf5 {[%emt 0:1:20]} Rg6+ {[%emt 0:0:33]} 61. Kh2 {[%emt 0:15:4]} Rxf2+ {[%emt 0:5:54]} 62. Kh3 {[%emt 0:0:0]} Kxh7 {[%emt 0:1:42]} 63. Rf7+ {[%emt 0:0:0]} Kh6 {[%emt 0:0:26]} 64. Rdxf8 {[%emt 0:0:0]} 1-0

[Event "57th Biel Festival MTO 2024"]
[White "Dotzer,Lukas"]
[Black "Song,Ethan"]
[Site "Biel"]
[Round "4.21"]
[Annotator "RC"]
[Result "1/2-1/2"]
[Date "2024.07.18"]
[WhiteElo "2369"]
[BlackElo "2244"]
[PlyCount "109"]
[TimeControl "60"]

1. e4 {[%emt 0:0:2]} e5 {[%emt 0:0:6]} 2. Nf3 {[%emt 0:0:7]} Nc6 {[%emt 0:0:4]} 3. Bb5 {[%emt 0:0:7]} Nf6 {[%emt 0:0:6]} 4. O-O {[%emt 0:0:6]} Nxe4 {[%emt 0:0:17]} 5. Re1 {[%emt 0:0:12]} Nd6 {[%emt 0:0:13]} 6. a4 {[%emt 0:0:7]} Be7 {[%emt 0:0:36]} 7. Nc3 {[%emt 0:0:14]} a6 {[%emt 0:0:27]} 8. Bf1 {[%emt 0:0:36]} e4 {[%emt 0:1:24]} 9. Nxe4 {[%emt 0:0:8]} Nxe4 {[%emt 0:0:7]} 10. Rxe4 {[%emt 0:0:21]} d5 {[%emt 0:0:13]} 11. Re1 {[%emt 0:0:16]} d4 {[%emt 0:2:2]} 12. Bc4 {[%emt 0:2:10]} O-O {[%emt 0:1:26]} 13. d3 {[%emt 0:0:47]} h6 {[%emt 0:0:51]} 14. Bd2 {[%emt 0:8:47]} Bd6 {[%emt 0:9:4]} 15. h3 {[%emt 0:15:47]} Qf6 {[%emt 0:13:10]} 16. Bd5 {[%emt 0:8:47]} Ne7 {[%emt 0:3:38]} 17. Be4 {[%emt 0:8:42]} Ng6 {[%emt 0:3:7]} 18. c3 {[%emt 0:9:38]} c5 {[%emt 0:0:36]} 19. cxd4 {[%emt 0:2:38]} cxd4 {[%emt 0:0:7]} 20. Qb3 {[%emt 0:4:24]} Be6 {[%emt 0:4:44]} 21. Bd5 {[%emt 0:18:44]} Bxd5 {[%emt 0:5:50]} 22. Qxd5 {[%emt 0:0:12]} Bf4 {[%emt 0:3:0]} 23. Ba5 {[%emt 0:8:35]} b6 {[%emt 0:1:53]} 24. Bb4 {[%emt 0:0:5]} Rfd8 {[%emt 0:1:14]} 25. Qb7 {[%emt 0:2:55]} a5 {[%emt 0:8:26]} 26. Ba3 {[%emt 0:6:28]} Rab8 {[%emt 0:2:44]} 27. Qe4 {[%emt 0:3:11]} Rbc8 {[%emt 0:1:48]} 28. h4 {[%emt 0:5:14]} Bd6 {[%emt 0:3:44]} 29. g3 {[%emt 0:1:47]} Bxa3 {[%emt 0:1:56]} 30. Rxa3 {[%emt 0:0:8]} Nf8 {[%emt 0:5:45]} 31. Ne5 {[%emt 0:3:42]} Rc2 {[%emt 0:2:16]} 32. Ng4 {[%emt 0:0:51]} Qe6 {[%emt 0:0:58]} 33. Ne5 {[%emt 0:0:25]} Rxb2 {[%emt 0:1:0]} 34. Nc6 {[%emt 0:0:27]} Re8 {[%emt 0:7:12]} 35. Raa1 {[%emt 0:0:39]} Qxe4 {[%emt 0:3:41]} 36. dxe4 {[%emt 0:0:15]} d3 {[%emt 0:0:59]} 37. Rad1 {[%emt 0:0:44]} Re2 {[%emt 0:1:20]} 38. f3 {[%emt 0:0:35]} f5 {[%emt 0:5:37]} 39. Rxe2 {[%emt 0:0:22]} dxe2 {[%emt 0:0:10]} 40. Re1 {[%emt 0:0:5]} fxe4 {[%emt 0:1:3]} 41. Rxe2 {[%emt 0:6:15]} e3 {[%emt 0:0:32]} 42. Kf1 {[%emt 0:6:38]} Nd7 {[%emt 0:1:2]} 43. Ra2 {[%emt 0:14:32]} Nc5 {[%emt 0:3:42]} 44. Ke2 {[%emt 0:2:17]} Nb3 {[%emt 0:1:22]} 45. Rc2 {[%emt 0:6:45]} Re6 {[%emt 0:2:0]} 46. Rc3 {[%emt 0:0:32]} Nc5 {[%emt 0:1:23]} 47. Nxa5 {[%emt 0:0:19]} Nxa4 {[%emt 0:0:15]} 48. Ra3 {[%emt 0:4:15]} bxa5 {[%emt 0:1:12]} 49. Rxa4 {[%emt 0:0:6]} Re5 {[%emt 0:0:5]} 50. f4 {[%emt 0:4:37]} Rb5 {[%emt 0:0:5]} 51. Kxe3 {[%emt 0:0:52]} h5 {[%emt 0:1:9]} 52. Kf3 {[%emt 0:0:37]} Rb3+ {[%emt 0:0:26]} 53. Kg2 {[%emt 0:0:16]} Rb2+ {[%emt 0:0:5]} 54. Kf3 {[%emt 0:0:9]} Rb3+ {[%emt 0:0:4]} 55. Ke4 {[%emt 0:0:14]} 1/2-1/2

[Event "57th Biel Festival MTO 2024"]
[White "Hafiz,Arif Abdul"]
[Black "Jaggy,Matteo"]
[Site "Biel"]
[Round "4.22"]
[Annotator "RC"]
[Result "1-0"]
[Date "2024.07.18"]
[WhiteElo "2367"]
[BlackElo "2211"]
[PlyCount "59"]
[TimeControl "60"]

1. d4 {[%emt 0:6:26]} Nf6 {[%emt 0:0:35]} 2. c4 {[%emt 0:0:15]} g6 {[%emt 0:0:36]} 3. h4 {[%emt 0:0:3]} d5 {[%emt 0:0:14]} 4. cxd5 {[%emt 0:2:28]} c6 {[%emt 0:9:25]} 5. dxc6 {[%emt 0:4:38]} Nxc6 {[%emt 0:0:4]} 6. e3 {[%emt 0:0:27]} Bg7 {[%emt 0:1:4]} 7. Nc3 {[%emt 0:0:39]} O-O {[%emt 0:2:58]} 8. Bb5 {[%emt 0:7:42]} Qb6 {[%emt 0:4:3]} 9. Nge2 {[%emt 0:15:21]} Rd8 {[%emt 0:2:6]} 10. Qa4 {[%emt 0:3:59]} e5 {[%emt 0:15:39]} 11. dxe5 {[%emt 0:5:44]} Ng4 {[%emt 0:1:29]} 12. Nf4 {[%emt 0:1:46]} Ncxe5 {[%emt 0:6:44]} 13. Be2 {[%emt 0:6:25]} Bd7 {[%emt 0:8:7]} 14. Qb3 {[%emt 0:1:1]} Qd6 {[%emt 0:2:17]} 15. f3 {[%emt 0:1:52]} Nf6 {[%emt 0:6:38]} 16. e4 {[%emt 0:3:12]} Qd4 {[%emt 0:5:36]} 17. Nb5 {[%emt 0:14:52]} Bxb5 {[%emt 0:3:23]} 18. Bxb5 {[%emt 0:0:5]} Nxe4 {[%emt 0:7:11]} 19. fxe4 {[%emt 0:1:5]} Ng4 {[%emt 0:6:15]} 20. Rf1 {[%emt 0:4:49]} Qxe4+ {[%emt 0:8:45]} 21. Ne2 {[%emt 0:6:37]} Be5 {[%emt 0:5:13]} 22. Bg5 {[%emt 0:5:20]} Rd5 {[%emt 0:0:11]} 23. Rd1 {[%emt 0:2:52]} Bd4 {[%emt 0:5:35]} 24. Rxd4 {[%emt 0:0:48]} Rxd4 {[%emt 0:0:31]} 25. Qxf7+ {[%emt 0:0:5]} Kh8 {[%emt 0:0:6]} 26. Bf6+ {[%emt 0:0:1]} Nxf6 {[%emt 0:0:9]} 27. Qxf6+ {[%emt 0:0:3]} Kg8 {[%emt 0:0:7]} 28. Qxd4 {[%emt 0:0:3]} Qb1+ {[%emt 0:0:36]} 29. Qd1 {[%emt 0:0:4]} Qxb2 {[%emt 0:0:6]} 30. Bc4+ {[%emt 0:0:14]} 1-0

[Event "57th Biel Festival MTO 2024"]
[White "Ayush Sharma"]
[Black "Schnell,Simon"]
[Site "Biel"]
[Round "4.23"]
[Annotator "RC"]
[Result "1-0"]
[Date "2024.07.18"]
[WhiteElo "2325"]
[BlackElo "2139"]
[PlyCount "83"]
[TimeControl "60"]

1. e4 {[%emt 0:0:3]} c6 {[%emt 0:0:15]} 2. Nf3 {[%emt 0:0:5]} d5 {[%emt 0:0:8]} 3. Nc3 {[%emt 0:0:5]} Bg4 {[%emt 0:1:13]} 4. h3 {[%emt 0:0:5]} Bxf3 {[%emt 0:0:3]} 5. Qxf3 {[%emt 0:0:6]} e6 {[%emt 0:0:4]} 6. g3 {[%emt 0:0:58]} Nf6 {[%emt 0:0:45]} 7. d3 {[%emt 0:0:33]} Bb4 {[%emt 0:1:9]} 8. e5 {[%emt 0:8:34]} Nfd7 {[%emt 0:9:2]} 9. Qg4 {[%emt 0:0:48]} Bf8 {[%emt 0:0:21]} 10. f4 {[%emt 0:13:18]} Qb6 {[%emt 0:0:43]} 11. Bg2 {[%emt 0:1:28]} c5 {[%emt 0:4:20]} 12. O-O {[%emt 0:3:36]} h5 {[%emt 0:2:56]} 13. Qd1 {[%emt 0:8:57]} Be7 {[%emt 0:2:2]} 14. Ne2 {[%emt 0:5:23]} Nc6 {[%emt 0:3:51]} 15. c3 {[%emt 0:1:49]} O-O-O {[%emt 0:6:27]} 16. Kh1 {[%emt 0:4:52]} Rdg8 {[%emt 0:14:52]} 17. a3 {[%emt 0:10:43]} g5 {[%emt 0:8:8]} 18. fxg5 {[%emt 0:5:17]} Bxg5 {[%emt 0:3:44]} 19. d4 {[%emt 0:0:48]} Bxc1 {[%emt 0:12:3]} 20. Qxc1 {[%emt 0:0:9]} cxd4 {[%emt 0:1:27]} 21. cxd4 {[%emt 0:0:11]} Rg7 {[%emt 0:1:14]} 22. b4 {[%emt 0:4:58]} Kb8 {[%emt 0:0:45]} 23. Qd2 {[%emt 0:5:25]} Ne7 {[%emt 0:6:9]} 24. Rac1 {[%emt 0:3:43]} Rhg8 {[%emt 0:2:39]} 25. Rc3 {[%emt 0:1:30]} Qa6 {[%emt 0:7:5]} 26. Kh2 {[%emt 0:6:16]} Nb6 {[%emt 0:2:22]} 27. Nf4 {[%emt 0:1:20]} Rh8 {[%emt 0:2:56]} 28. h4 {[%emt 0:5:48]} Nc4 {[%emt 0:2:23]} 29. Qf2 {[%emt 0:0:30]} Qb6 {[%emt 0:2:4]} 30. Nd3 {[%emt 0:3:51]} Rhg8 {[%emt 0:2:2]} 31. Nc5 {[%emt 0:0:38]} Qd8 {[%emt 0:2:12]} 32. Bh3 {[%emt 0:1:46]} b6 {[%emt 0:2:38]} 33. Na6+ {[%emt 0:0:6]} Kb7 {[%emt 0:0:25]} 34. b5 {[%emt 0:0:17]} Ng6 {[%emt 0:4:37]} 35. Rfc1 {[%emt 0:4:39]} Qd7 {[%emt 0:1:23]} 36. Rxc4 {[%emt 0:0:55]} dxc4 {[%emt 0:0:9]} 37. Bg2+ {[%emt 0:0:59]} Kc8 {[%emt 0:0:12]} 38. Rxc4+ {[%emt 0:0:17]} Kd8 {[%emt 0:0:9]} 39. Nb8 {[%emt 0:2:0]} Qxb5 {[%emt 0:2:18]} 40. Qf6+ {[%emt 0:0:13]} Ne7 {[%emt 0:1:10]} 41. Rc7 {[%emt 0:52:31]} Re8 {[%emt 0:51:31]} 42. Rxe7 {[%emt 0:0:31]} 1-0

[Event "57th Biel Festival MTO 2024"]
[White "Balabayeva,Xeniya"]
[Black "Sukandar,Irine Kharisma"]
[Site "Biel"]
[Round "4.24"]
[Annotator "RC"]
[Result "1-0"]
[Date "2024.07.18"]
[WhiteElo "2246"]
[BlackElo "2338"]
[PlyCount "79"]
[TimeControl "60"]

1. e4 {[%emt 0:0:3]} c5 {[%emt 0:0:44]} 2. Nf3 {[%emt 0:0:10]} Nc6 {[%emt 0:0:18]} 3. Bb5 {[%emt 0:0:12]} Nf6 {[%emt 0:0:22]} 4. Nc3 {[%emt 0:0:26]} g6 {[%emt 0:0:21]} 5. O-O {[%emt 0:2:45]} Bg7 {[%emt 0:0:17]} 6. Re1 {[%emt 0:3:42]} O-O {[%emt 0:0:26]} 7. e5 {[%emt 0:9:23]} Ne8 {[%emt 0:0:20]} 8. d3 {[%emt 0:15:44]} Nd4 {[%emt 0:6:12]} 9. Bg5 {[%emt 0:11:39]} Nxb5 {[%emt 0:23:39]} 10. Nxb5 {[%emt 0:0:8]} f6 {[%emt 0:0:41]} 11. exf6 {[%emt 0:3:46]} exf6 {[%emt 0:1:46]} 12. Be3 {[%emt 0:3:25]} d6 {[%emt 0:15:45]} 13. d4 {[%emt 0:2:37]} Bd7 {[%emt 0:4:36]} 14. Nc3 {[%emt 0:3:1]} b6 {[%emt 0:0:49]} 15. dxc5 {[%emt 0:2:52]} dxc5 {[%emt 0:4:40]} 16. Qd5+ {[%emt 0:4:2]} Rf7 {[%emt 0:0:10]} 17. Bf4 {[%emt 0:8:32]} g5 {[%emt 0:13:58]} 18. Bg3 {[%emt 0:6:5]} Bf8 {[%emt 0:0:44]} 19. Rad1 {[%emt 0:4:39]} Qc8 {[%emt 0:0:18]} 20. h4 {[%emt 0:4:1]} Bc6 {[%emt 0:2:37]} 21. Qc4 {[%emt 0:1:10]} g4 {[%emt 0:5:44]} 22. Nh2 {[%emt 0:3:55]} f5 {[%emt 0:0:9]} 23. Nd5 {[%emt 0:3:59]} Qb7 {[%emt 0:2:28]} 24. Ne3 {[%emt 0:7:1]} b5 {[%emt 0:0:53]} 25. Qf4 {[%emt 0:0:22]} Ng7 {[%emt 0:0:43]} 26. Qh6 {[%emt 0:7:35]} Re8 {[%emt 0:6:26]} 27. Nexg4 {[%emt 0:1:24]} fxg4 {[%emt 0:0:43]} 28. Nxg4 {[%emt 0:0:9]} Rxe1+ {[%emt 0:6:31]} 29. Rxe1 {[%emt 0:0:5]} Bxg2 {[%emt 0:0:40]} 30. Nf6+ {[%emt 0:1:29]} Rxf6 {[%emt 0:0:4]} 31. Qxf6 {[%emt 0:0:5]} Bh3 {[%emt 0:4:34]} 32. f3 {[%emt 0:0:9]} Qd5 {[%emt 0:0:14]} 33. Kf2 {[%emt 0:1:31]} c4 {[%emt 0:0:41]} 34. Bf4 {[%emt 0:0:44]} Bc5+ {[%emt 0:1:4]} 35. Ke2 {[%emt 0:0:16]} Ne6 {[%emt 0:1:28]} 36. Be5 {[%emt 0:0:30]} Bf5 {[%emt 0:0:38]} 37. Rd1 {[%emt 0:0:33]} Bd3+ {[%emt 0:4:24]} 38. cxd3 {[%emt 0:0:15]} Bd4 {[%emt 0:0:8]} 39. Bxd4 {[%emt 0:0:41]} Nxd4+ {[%emt 0:0:7]} 40. Kf2 {[%emt 0:1:57]} 1-0

[Event "57th Biel Festival MTO 2024"]
[White "Valsecchi,Alessio"]
[Black "Follesa,Enrico"]
[Site "Biel"]
[Round "4.25"]
[Annotator "TA"]
[Result "1-0"]
[Date "2024.07.18"]
[WhiteElo "2483"]
[BlackElo "2241"]
[PlyCount "87"]
[TimeControl "60"]

{[%evp 19,87,0,0,-4,0,-16,3,0,70,4,7,0,26,0,24,31,29,55,37,27,63,30,139,91,116,52,83,59,423,392,381,366,426,162,657,660,616,475,514,521,495,488,511,505,497,481,467,405,403,356,392,407,701,633,29983,29984,29984,877,945,882,29986,29987,29987,29988,29989,29989,29989,29990,29990,29991]} 1. e4 {[%emt 0:0:3]} c5 {[%emt 0:0:7]} 2. Nf3 {[%emt 0:0:5]} d6 {[%emt 0:0:5]} 3. d4 {[%emt 0:0:14]} cxd4 {[%emt 0:0:3]} 4. Nxd4 {[%emt 0:0:6]} Nf6 {[%emt 0:0:7]} 5. Nc3 {[%emt 0:0:6]} a6 {[%emt 0:0:4]} 6. Bg5 {[%emt 0:0:20]} e6 {[%emt 0:0:13]} 7. f4 {[%emt 0:0:13]} h6 {[%emt 0:0:8]} 8. Bxf6 {[%emt 0:0:24]} Qxf6 {[%emt 0:4:3]} 9. Qd2 {[%emt 0:0:6]} Nc6 {[%emt 0:7:21]} 10. Nxc6 {[%emt 0:0:12]} bxc6 {[%emt 0:0:2]} 11. O-O-O {[%emt 0:0:18][%cal Oe4e5]} Qd8 {[%emt 0:5:54]} 12. Kb1 {[%emt 0:0:22]} Qb6 {[%emt 0:8:36]} 13. Na4 {[%emt 0:20:27] Die Stellung ist ausgeglichen.} Qc7 {[%emt 0:0:43]} ({Vorzuziehen ist} 13... Qb7 $1 $11 )14. h4 {[%emt 0:2:24] Weiß steht aktiver.} (14. Qc3 $14 )Rb8 $11 {[%emt 0:20:12]} 15. c4 {[%emt 0:15:10]} c5 {[%emt 0:6:12]} 16. g4 {[%emt 0:1:25]} g6 {[%emt 0:6:50]} 17. h5 {[%emt 0:3:12]} Bd7 {[%emt 0:3:22]} 18. Nc3 {[%emt 0:0:38]} Bg7 {[%emt 0:1:33][%cal Og6g5]} 19. hxg6 {[%emt 0:7:32]} (19. Qxd6 $2 Qxd6 20. Rxd6 Bxc3 $19 )fxg6 {[%emt 0:0:15]} 20. Rh3 {[%emt 0:5:54]} (20. Qxd6 $2 Qxd6 21. Rxd6 Bxc3 $19 )Ke7 {[%emt 0:15:57]} (20... O-O $11 {hält das Gleichgewicht.} )21. Rd3 {[%emt 0:20:58]} (21. b3 $142 )Bd4 {[%emt 0:7:32]} 22. Bg2 {[%emt 0:0:7]} (22. Rxd4 $16 cxd4 23. Qxd4 )Qb6 {[%emt 0:4:36]} 23. b3 {[%emt 0:8:9][%cal Oe4e5] Droht stark e5!} Qb4 $2 {[%emt 0:1:21][%mdl 8192] Danach kann Schwarz die Partie nicht mehr halten.} (23... a5 $14 )24. Rxd4 $18 {[%emt 0:0:52]} ({Weniger gut wäre} 24. e5 Qxc4 25. Ne2 (25. exd6+ Kf7 $15 )Qb4 $18 )cxd4 {[%emt 0:0:34]} 25. Qxd4 {[%emt 0:0:7] Zielt auf Qg7+ ab.} Rhf8 {[%emt 0:5:35] [#]} 26. f5 {[%emt 0:4:17]} (26. e5 $1 {[%mdl 512]} )e5 {[%emt 0:5:55]} (26... Ke8 27. e5 (27. fxg6 Qc5 $16 )(27. Qxd6 Qxd6 28. Rxd6 gxf5 $11 )Qc5 )27. Nd5+ {[%emt 0:4:18]} Kd8 {[%emt 0:0:14][%cal Be7d8,Bd8c8,Bc8b7][%mdl 32]} 28. Qa7 {[%emt 0:1:13]} Qb7 {[%emt 0:0:36]} 29. Qe3 {[%emt 0:0:10]} g5 {[%emt 0:1:4]} 30. Rh1 {[%emt 0:0:46]} Qc6 {[%emt 0:2:39]} 31. Rxh6 {[%emt 0:3:11]} Qc5 {[%emt 0:2:31]} 32. Qxg5+ {[%emt 0:1:8]} Kc8 {[%emt 0:0:3]} 33. Qd2 {[%emt 0:1:31]} a5 {[%emt 0:1:16][%cal Ba6a5,Ba5a4][%mdl 32]} 34. g5 {[%emt 0:3:22]} a4 {[%emt 0:0:31]} 35. b4 {[%emt 0:1:2]} Qg1+ {[%emt 0:0:8]} (35... Bc6 $142 36. Ne7+ Kd7 37. Nxc6 Kxc6 38. b5+ Kd7 39. Rh7+ Ke8 )36. Kc2 {[%emt 0:1:16][%cal Bb1c2,Bc2d1,Bd1e2,Be2f3][%mdl 32] [#] Und Ne7+ würde nun gewinnen.} Qa1 {[%emt 0:1:15]} 37. Ne7+ {[%emt 0:1:5]} Kb7 {[%emt 0:0:45]} 38. Qxd6 {[%emt 0:1:41]} (38. Qd5+ $142 Ka7 39. Nc6+ (39. Rxd6 Qxa2+ 40. Kd3 Qb3+ 41. Ke2 Rxb4 $18 )Kb7 40. Nxb8+ Kc8 41. Nxd7 (41. Qxd6 Qxa2+ 42. Kd3 Qb3+ 43. Kd2 Qb2+ 44. Ke1 Qc3+ 45. Kf2 Qd4+ 46. Qxd4 exd4 $18 )Qxa2+ 42. Kd3 Qb3+ 43. Ke2 )Qxa2+ {[%emt 0:0:10]} 39. Kd1 {[%emt 0:0:58]} Qa1+ {[%emt 0:0:48]} 40. Ke2 {[%emt 0:0:52] Weiß setzt Matt.} Qb2+ {[%emt 0:0:36]} 41. Kf3 {[%emt 0:50:33]} Qd4 {[%emt 0:1:50]} 42. Qa6+ {[%emt 0:0:0]} Kc7 {[%emt 0:0:2]} 43. Nd5+ {[%emt 0:0:0]} Kd8 {[%emt 0:0:6]} 44. Qd6 {[%emt 0:0:0][%csl LRb8,LRf8] Gewichteter Fehlerwert: Weiß=0.27 (präzise) /Schwarz=0.83.  Verlustzug:     	---       	Schwarz=1     Fehler:       	Weiß=4     	Schwarz=4     Ungenau:       	---       	Schwarz=4     OK:         	Weiß=9     	Schwarz=7     Bester:       	Weiß=2     	Schwarz=1} 1-0